fUST/lending_fUST_20250914
["ID","MTS","AMOUNT","RATE_DAILY","PERIOD"]
[385406789,1757842245447,-480.0,0.00021917,2]
[385406791,1757842245456,-480.0,0.00021917,2]
[385406792,1757842245466,-496.49749978,0.00021917,2]
[385406793,1757842245476,-571.62686111,0.00021917,2]
[385406794,1757842245485,-480.0,0.00021917,2]
[385406796,1757842245496,-480.0,0.00021917,2]
[385406798,1757842245505,-480.0,0.00021917,2]
[385406800,1757842245514,-151.0,0.00021917,2]
[385406802,1757842245523,-480.0,0.00021917,2]
[385406804,1757842245532,-480.0,0.00021917,2]
[385406806,1757842245542,-480.0,0.00021917,2]
[385406808,1757842245551,-154.593084,0.00021917,2]
[385406810,1757842245560,-480.0,0.00021917,2]
[385406812,1757842245570,-480.0,0.00021917,2]
[385406814,1757842245579,-617.84981511,0.00021917,2]
[385406816,1757842245588,-736.46,0.00021917,2]
[385406818,1757842245597,-480.0,0.00021917,2]
[385406820,1757842245606,-152.960931,0.00021917,2]
[385406822,1757842245615,-953.32,0.00021917,2]
[385406824,1757842245624,-151.0,0.00021917,2]
[385406826,1757842245634,-480.0,0.00021917,2]
[385406828,1757842245644,-500.89758025,0.00021917,2]
[385406829,1757842245654,-1851.05,0.00021917,2]
[385406832,1757842245663,-480.0,0.00021917,2]
[385406834,1757842245672,-151.9483,0.00021917,2]
[385406835,1757842245683,-816.13,0.00021917,2]
[385406837,1757842245693,-480.0,0.00021917,2]
[385406839,1757842245702,-151.0,0.00021917,2]
[385406841,1757842245712,-151.0,0.00021917,2]
[385406843,1757842245722,-916.64,0.00021917,2]
[385406845,1757842245731,-151.0,0.00021917,2]
[385406847,1757842245741,-557.13594245,0.00021917,2]
[385406849,1757842245750,-859.31,0.00021917,2]
[385406851,1757842245759,-289.679136,0.00021917,2]
[385406853,1757842245769,-480.0,0.00021917,2]
[385406855,1757842245778,-151.0,0.00021917,2]
[385406857,1757842245788,-151.0,0.00021917,2]
[385406859,1757842245797,-482.21828813,0.00021917,2]
[385406861,1757842245806,-480.0,0.00021917,2]
[385406863,1757842245816,-164.822874,0.00021917,2]
[385406865,1757842245826,-857.5,0.00021917,2]
[385406867,1757842245835,-480.0,0.00021917,2]
[385406869,1757842245845,-480.0,0.00021917,2]
[385406871,1757842245855,-480.0,0.00021917,2]
[385406874,1757842245865,-480.0,0.00021917,2]
[385406876,1757842245874,-482.21103764,0.00021917,2]
[385406878,1757842245884,-151.0,0.00021917,2]
[385406880,1757842245895,-151.0,0.00021917,2]
[385406881,1757842245904,-480.0,0.00021917,2]
[385406883,1757842245914,-558.54,0.00021917,2]
[385406886,1757842245924,-480.0,0.00021917,2]
[385406888,1757842245937,-480.0,0.00021917,2]
[385406890,1757842245947,-480.0,0.00021917,2]
[385406892,1757842245956,-1052.55,0.00021917,2]
[385406893,1757842245965,-168.30596897,0.00021917,2]
[385406895,1757842245977,-480.0,0.00021917,2]
[385406898,1757842245987,-4286.53,0.00021917,2]
[385406900,1757842245997,-154.548553,0.00021917,2]
[385406901,1757842246007,-480.0,0.00021917,2]
[385406904,1757842246017,-3346.74,0.00021917,2]
[385406906,1757842246027,-1303.6,0.00021917,2]
[385406908,1757842246036,-480.0,0.00021917,2]
[385406910,1757842246046,-480.0,0.00021917,2]
[385406912,1757842246056,-480.0,0.00021917,2]
[385406914,1757842246065,-1497.82,0.00021917,2]
[385406915,1757842246074,-480.0,0.00021917,2]
[385406916,1757842246084,-480.0,0.00021917,2]
[385406918,1757842246093,-480.0,0.00021917,2]
[385406919,1757842246102,-151.0,0.00021917,2]
[385406921,1757842246112,-480.0,0.00021917,2]
[385406922,1757842246122,-578.87,0.00021917,2]
[385406923,1757842246132,-480.0,0.00021917,2]
[385406924,1757842246141,-480.0,0.00021917,2]
[385406925,1757842246151,-480.0,0.00021917,2]
[385406926,1757842246162,-1428.71,0.00021917,2]
[385406927,1757842246171,-1484.05,0.00021917,2]
[385406928,1757842246181,-480.0,0.00021917,2]
[385406929,1757842246190,-480.0,0.00021917,2]
[385406930,1757842246199,-480.0,0.00021917,2]
[385406932,1757842246209,-480.0,0.00021917,2]
[385406933,1757842246219,-480.0,0.00021917,2]
[385406934,1757842246229,-488.14226077,0.00021917,2]
[385406935,1757842246239,-480.0,0.00021917,2]
[385406937,1757842246249,-480.0,0.00021917,2]
[385406938,1757842246259,-512.92,0.00021917,2]
[385406939,1757842246269,-6860.28,0.00021917,2]
[385406940,1757842246279,-834.53,0.00021917,2]
[385406941,1757842246289,-170.910846,0.00021917,2]
[385406942,1757842246298,-480.0,0.00021917,2]
[385406943,1757842246307,-480.0,0.00021917,2]
[385406944,1757842246316,-4760.97,0.00021917,2]
[385406945,1757842246325,-480.0,0.00021917,2]
[385406946,1757842246336,-151.0,0.00021917,2]
[385406947,1757842246345,-151.0,0.00021917,2]
[385406948,1757842246354,-1169.89,0.00021917,2]
[385406949,1757842246364,-151.0,0.00021917,2]
[385406950,1757842246374,-151.0,0.00021917,2]
[385406951,1757842246383,-590.5,0.00021917,2]
[385406952,1757842246392,-480.0,0.00021917,2]
[385406953,1757842246402,-480.0,0.00021917,2]
[385406954,1757842246411,-480.0,0.00021917,2]
[385406955,1757842246421,-196.378904,0.00021917,2]
[385406956,1757842246430,-1542.2,0.00021917,2]
[385406957,1757842246440,-480.0,0.00021917,2]
[385406958,1757842246450,-480.0,0.00021917,2]
[385406959,1757842246460,-14442.99,0.00021917,2]
[385406960,1757842246469,-3752.88,0.00021917,2]
[385406961,1757842246479,-2372.18,0.00021917,2]
[385406962,1757842246488,-151.0,0.00021917,2]
[385406963,1757842246498,-2990.71,0.00021917,2]
[385406964,1757842246507,-480.0,0.00021917,2]
[385406965,1757842246517,-480.0,0.00021917,2]
[385406966,1757842246526,-915.36,0.00021917,2]
[385406967,1757842246535,-480.0,0.00021917,2]
[385406968,1757842246544,-480.0,0.00021917,2]
[385406969,1757842246553,-480.0,0.00021917,2]
[385406970,1757842246563,-480.0,0.00021917,2]
[385406971,1757842246573,-480.0,0.00021917,2]
[385406972,1757842246582,-550.01,0.00021917,2]
[385406973,1757842246591,-152.087966,0.00021917,2]
[385406974,1757842246600,-480.0,0.00021917,2]
[385406975,1757842246609,-480.0,0.00021917,2]
[385406976,1757842246619,-480.0,0.00021917,2]
[385406977,1757842246629,-151.0,0.00021917,2]
[385406978,1757842246638,-2319.02,0.00021917,2]
[385406979,1757842246648,-1000.0,0.00021917,2]
[385406980,1757842246657,-423.86774919,0.00021917,2]
[385406981,1757842246666,-689.3,0.00021917,2]
[385406982,1757842246676,-500.0,0.00021917,2]
[385406983,1757842246685,-220.52901567,0.00021917,2]
[385406984,1757842246695,-480.0,0.00021917,2]
[385406985,1757842246706,-539.56,0.00021917,2]
[385406986,1757842246715,-480.0,0.00021917,2]
[385406987,1757842246724,-1110.62,0.00021917,2]
[385406988,1757842246734,-626.38,0.00021917,2]
[385406989,1757842246743,-7387.37,0.00021917,2]
[385406990,1757842246754,-151.0,0.00021917,2]
[385406991,1757842246764,-1268.78,0.00021917,2]
[385406992,1757842246773,-151.0,0.00021917,2]
[385406993,1757842246783,-151.0,0.00021917,2]
[385406994,1757842246792,-480.0,0.00021917,2]
[385406995,1757842246802,-726.21,0.00021917,2]
[385406996,1757842246811,-151.0,0.00021917,2]
[385406997,1757842246821,-815.14,0.00021917,2]
[385406998,1757842246831,-560.89,0.00021917,2]
[385406999,1757842246841,-816.39,0.00021917,2]
[385407000,1757842246851,-480.0,0.00021917,2]
[385407001,1757842246861,-2900.75,0.00021917,2]
[385407002,1757842246871,-773.09,0.00021917,2]
[385407003,1757842246880,-3584.76,0.00021917,2]
[385407004,1757842246891,-1442.82,0.00021917,2]
[385407005,1757842246902,-480.0,0.00021917,2]
[385407006,1757842246912,-185.00889537,0.00021917,2]
[385407007,1757842246923,-643.08,0.00021917,2]
[385407008,1757842246934,-490.22513463,0.00021917,2]
[385407009,1757842246944,-480.0,0.00021917,2]
[385407010,1757842246953,-480.0,0.00021917,2]
[385407011,1757842246963,-1041.98,0.00021917,2]
[385407012,1757842246972,-2318.4,0.00021917,2]
[385407013,1757842246982,-494.01621461,0.00021917,2]
[385407014,1757842246992,-480.0,0.00021917,2]
[385407015,1757842247002,-490.46318283,0.00021917,2]
[385407016,1757842247011,-5897.22,0.00021917,2]
[385407017,1757842247227,-502.07475793,0.00021917,2]
[385407018,1757842247237,-480.0,0.00021917,2]
[385407019,1757842247246,-480.0,0.00021917,2]
[385407020,1757842247255,-480.0,0.00021917,2]
[385407021,1757842247265,-480.0,0.00021917,2]
[385407022,1757842247274,-480.0,0.00021917,2]
[385407023,1757842247284,-1026.22,0.00021917,2]
[385407024,1757842247293,-348.3367903,0.00021917,2]
[385407025,1757842247302,-528.31,0.00021917,2]
[385407026,1757842247311,-939.18,0.00021917,2]
[385407027,1757842247320,-167.637528,0.00021917,2]
[385407028,1757842247329,-480.0,0.00021917,2]
[385407029,1757842247476,-480.0,0.00021917,2]
[385407030,1757842247495,-2788.56,0.00021917,2]
[385407031,1757842247505,-153.857443,0.00021917,2]
[385407032,1757842247515,-511.63,0.00021917,2]
[385407033,1757842247526,-480.0,0.00021917,2]
[385407034,1757842247535,-667.44,0.00021917,2]
[385407035,1757842247544,-1596.81,0.00021917,2]
[385407036,1757842247553,-493.64009434,0.00021917,2]
[385407037,1757842247563,-716.08,0.00021917,2]
[385407038,1757842247571,-480.0,0.00021917,2]
[385407040,1757842247580,-480.0,0.00021917,2]
[385407042,1757842247590,-285.731232,0.00021917,2]
[385407044,1757842247606,-500.0,0.00021917,2]
[385407045,1757842247618,-500.0,0.00021917,2]
[385407046,1757842247632,-500.0,0.00021917,2]
[385407047,1757842247642,-213.27466738,0.00021917,2]
[385407049,1757842247651,-480.0,0.00021917,2]
[385407051,1757842247660,-1168.99,0.00021917,2]
[385407052,1757842247669,-480.0,0.00021917,2]
[385407053,1757842247678,-1411.93,0.00021917,2]
[385407054,1757842247688,-480.0,0.00021917,2]
[385407055,1757842247697,-270.44843,0.00021917,2]
[385407056,1757842247706,-941.43,0.00021917,2]
[385407057,1757842247715,-823.14,0.00021917,2]
[385407058,1757842247724,-510.71,0.00021917,2]
[385407059,1757842247733,-708.99,0.00021917,2]
[385407060,1757842247742,-890.31,0.00021917,2]
[385407061,1757842247751,-480.0,0.00021917,2]
[385407062,1757842247760,-480.0,0.00021917,2]
[385407063,1757842247770,-480.0,0.00021917,2]
[385407064,1757842247779,-3242.87,0.00021917,2]
[385407065,1757842247788,-883.85,0.00021917,2]
[385407066,1757842247797,-480.0,0.00021917,2]
[385407067,1757842247807,-2283.8,0.00021917,2]
[385407068,1757842247816,-330.42,0.00021917,2]
[385407069,1757842247826,-480.0,0.00021917,2]
[385407070,1757842247835,-480.0,0.00021917,2]
[385407071,1757842247845,-545.98,0.00021917,2]
[385407072,1757842247855,-1241.46,0.00021917,2]
[385407073,1757842247865,-1074.27,0.00021917,2]
[385407074,1757842247874,-480.0,0.00021917,2]
[385407075,1757842247883,-480.0,0.00021917,2]
[385407076,1757842247893,-480.0,0.00021917,2]
[385407077,1757842247902,-503.84656703,0.00021917,2]
[385407078,1757842247911,-480.0,0.00021917,2]
[385407079,1757842247922,-151.0,0.00021917,2]
[385407080,1757842247936,-151.0,0.00021917,2]
[385407081,1757842247947,-967.27,0.00021917,2]
[385407082,1757842247956,-1147.64,0.00021917,2]
[385407083,1757842247966,-151.0,0.00021917,2]
[385407084,1757842247975,-1003.54,0.00021917,2]
[385407085,1757842247984,-151.0,0.00021917,2]
[385407086,1757842247993,-480.0,0.00021917,2]
[385407087,1757842248003,-687.97,0.00021917,2]
[385407088,1757842248013,-480.0,0.00021917,2]
[385407089,1757842248023,-567.67,0.00021917,2]
[385407090,1757842248032,-836.37,0.00021917,2]
[385407091,1757842248041,-151.0,0.00021917,2]
[385407092,1757842248051,-348.22884602,0.00021917,2]
[385407093,1757842248060,-151.0,0.00021917,2]
[385407094,1757842248070,-779.88,0.00021917,2]
[385407095,1757842248079,-794.71,0.00021917,2]
[385407096,1757842248088,-151.0,0.00021917,2]
[385407097,1757842248097,-151.0,0.00021917,2]
[385407098,1757842248107,-493.55,0.00021917,2]
[385407099,1757842248116,-480.0,0.00021917,2]
[385407100,1757842248126,-480.0,0.00021917,2]
[385407101,1757842248136,-4178.51,0.00021917,2]
[385407102,1757842248145,-151.0,0.00021917,2]
[385407103,1757842248155,-336.26840041,0.00021917,2]
[385407104,1757842248164,-480.0,0.00021917,2]
[385407105,1757842248173,-480.0,0.00021917,2]
[385407106,1757842248183,-480.0,0.00021917,2]
[385407107,1757842248192,-29658.1,0.00021917,2]
[385407108,1757842248202,-156.804569,0.00021917,2]
[385407109,1757842248212,-480.0,0.00021917,2]
[385407110,1757842248222,-480.0,0.00021917,2]
[385407111,1757842248231,-485.14174075,0.00021917,2]
[385407112,1757842248241,-480.0,0.00021917,2]
[385407113,1757842248251,-480.0,0.00021917,2]
[385407114,1757842248261,-480.94301996,0.00021917,2]
[385407115,1757842248270,-996.66,0.00021917,2]
[385407116,1757842248280,-151.0,0.00021917,2]
[385407117,1757842248289,-151.0,0.00021917,2]
[385407118,1757842248299,-480.0,0.00021917,2]
[385407119,1757842248308,-480.0,0.00021917,2]
[385407120,1757842248318,-276.062693,0.00021917,2]
[385407121,1757842248328,-151.0,0.00021918,2]
[385407122,1757842248338,-152.99899868,0.00021918,2]
[385407123,1757842248347,-274.0,0.00021932,2]
[385407124,1757842248356,-500.0,0.00021973,2]
[385407125,1757842248366,-500.0,0.00021973,2]
[385407126,1757842248375,-376.26473741,0.00021973,2]
[385407127,1757842248387,-500.0,0.00021973,2]
[385407128,1757842248396,-433.57024684,0.00021973,2]
[385407129,1757842248405,-500.0,0.00021973,2]
[385407130,1757842248415,-500.0,0.00021973,2]
[385407131,1757842248424,-500.0,0.00021973,2]
[385407132,1757842248433,-500.0,0.00021973,2]
[385407133,1757842248443,-500.0,0.00021973,2]
[385407134,1757842248453,-500.0,0.00021973,2]
[385407135,1757842248462,-500.0,0.00021973,2]
[385407136,1757842248471,-501.14329977,0.00021973,2]
[385407137,1757842248481,-400.41690973,0.00021973,2]
[385407138,1757842248491,-500.0,0.00021973,2]
[385407139,1757842248500,-500.83706707,0.00021973,2]
[385407140,1757842248510,-160.12392829,0.00021973,2]
[385407141,1757842248519,-500.37664119,0.00021973,2]
[385407142,1757842248534,-501.74410794,0.00021973,2]
[385407143,1757842248544,-503.38114305,0.00021973,2]
[385407144,1757842248554,-500.57213425,0.00021973,2]
[385407145,1757842248564,-500.0,0.00021973,2]
[385407146,1757842248574,-501.03488358,0.00021973,2]
[385407147,1757842248583,-500.75798661,0.00021973,2]
[385407148,1757842248592,-500.0,0.00021973,2]
[385407149,1757842248602,-500.0,0.00021973,2]
[385407150,1757842248611,-500.0,0.00021973,2]
[385407151,1757842248621,-500.0,0.00021973,2]
[385407152,1757842248630,-500.0,0.00021973,2]
[385407153,1757842248640,-500.0,0.00021973,2]
[385407154,1757842248649,-503.1782557,0.00021973,2]
[385407155,1757842248659,-500.0,0.00021973,2]
[385407156,1757842248668,-504.05476031,0.00021973,2]
[385407157,1757842248677,-500.0,0.00021973,2]
[385407158,1757842248688,-151.0,0.00021973,7]
[385407159,1757842248697,-17629.6497904,0.00021976,2]
[385407160,1757842248707,-1017.0214916,0.00021976,2]
[385407161,1757842248717,-151.0,0.00021976,7]
[385407162,1757842248726,-1000.0,0.00021976,2]
[385407163,1757842248735,-1000.0,0.00021976,2]
[385407164,1757842248745,-1000.0,0.00021976,2]
[385407165,1757842248755,-1000.0,0.00021976,2]
[385407166,1757842248764,-151.0,0.00021976,7]
[385407167,1757842248774,-883.736595,0.00021976,2]
[385407168,1757842248783,-151.0,0.00021976,7]
[385407169,1757842248793,-151.0,0.00021976,7]
[385407170,1757842248803,-1623.74,0.00022,7]
[385407171,1757842248812,-254.69,0.00022,2]
[385407172,1757842248822,-755.0,0.0002209,2]
[385407173,1757842248832,-500.0,0.0002209,2]
[385407174,1757842248842,-160.0,0.00022091,3]
[385407175,1757842248851,-28389.43940601,0.00022091,3]
[385407176,1757842248861,-1000.0,0.00022091,2]
[385407177,1757842248870,-151.0,0.00022091,7]
[385407178,1757842248879,-151.0,0.00022091,7]
[385407179,1757842248889,-153.356465,0.00022091,7]
[385407180,1757842248898,-287.702866,0.00022091,7]
[385407181,1757842248908,-151.0,0.00022091,7]
[385407182,1757842248917,-151.0,0.00022091,7]
[385407183,1757842248928,-151.0,0.00022091,7]
[385407184,1757842248944,-151.0,0.00022091,7]
[385407185,1757842248957,-151.0,0.00022091,7]
[385407186,1757842248972,-151.0,0.00022091,7]
[385407187,1757842248984,-151.0,0.00022091,7]
[385407188,1757842248995,-151.0,0.00022091,7]
[385407189,1757842249005,-151.0,0.00022091,7]
[385407190,1757842249018,-151.0,0.00022091,7]
[385407191,1757842249031,-151.0,0.00022091,7]
[385407192,1757842249043,-151.0,0.00022091,7]
[385407193,1757842249055,-151.0,0.00022091,7]
[385407194,1757842249068,-151.0,0.00022091,7]
[385407195,1757842249080,-420.0,0.00022093,2]
[385407196,1757842249092,-420.0,0.00022093,2]
[385407197,1757842249106,-151.0,0.000221,7]
[385407198,1757842249119,-176.24354705,0.0002212,2]
[385407199,1757842249131,-293.94190727,0.00022178,2]
[385407200,1757842249142,-310.40289207,0.00022182,2]
[385407201,1757842249155,-480.0,0.00022191,3]
[385407202,1757842249166,-480.0,0.00022191,3]
[385407203,1757842249178,-151.0,0.00022191,7]
[385407204,1757842249190,-152.070344,0.00022191,7]
[385407205,1757842249203,-151.0,0.00022191,7]
[385407206,1757842249214,-152.308217,0.00022191,7]
[385407207,1757842249227,-153.446827,0.00022191,7]
[385407208,1757842249237,-480.0,0.00022191,3]
[385407209,1757842249248,-480.0,0.00022191,3]
[385407210,1757842249260,-151.676152,0.00022191,7]
[385407211,1757842249270,-152.761058,0.00022191,7]
[385407212,1757842249282,-480.0,0.00022191,3]
[385407213,1757842249294,-394.09621607,0.00022191,3]
[385407214,1757842249306,-480.0,0.00022191,3]
[385407215,1757842249319,-480.0,0.00022191,3]
[385407216,1757842249332,-480.0,0.00022191,3]
[385407217,1757842249345,-189.73023821,0.00022191,3]
[385407218,1757842249357,-491.37539756,0.00022191,3]
[385407219,1757842249369,-480.0,0.00022191,3]
[385407220,1757842249383,-153.968198,0.00022191,7]
[385407221,1757842249395,-155.001347,0.00022191,7]
[385407222,1757842249406,-151.0,0.00022191,7]
[385407223,1757842249418,-152.124298,0.00022191,7]
[385407224,1757842249428,-480.0,0.00022191,3]
[385407225,1757842249440,-480.0,0.00022191,3]
[385407226,1757842249453,-480.0,0.00022191,3]
[385407227,1757842249466,-153.902806,0.00022191,7]
[385407228,1757842249478,-292.566696,0.00022191,7]
[385407229,1757842249489,-480.0,0.00022191,3]
[385407230,1757842249501,-151.0,0.00022191,7]
[385407231,1757842249511,-480.0,0.00022191,3]
[385407232,1757842249524,-480.0,0.00022191,3]
[385407233,1757842249536,-550.95525765,0.00022191,3]
[385407234,1757842249547,-500.0,0.00022191,3]
[385407235,1757842249558,-480.0,0.00022191,3]
[385407236,1757842249573,-522.3796169,0.00022191,3]
[385407237,1757842249584,-200.471635,0.00022191,7]
[385407238,1757842249596,-603.75,0.00022191,3]
[385407239,1757842249608,-517.94,0.00022191,3]
[385407240,1757842249621,-650.32,0.00022191,3]
[385407241,1757842249632,-480.0,0.00022191,3]
[385407242,1757842249644,-480.0,0.00022191,3]
[385407243,1757842249656,-480.0,0.00022191,3]
[385407244,1757842249669,-480.0,0.00022191,3]
[385407245,1757842249680,-480.0,0.00022191,3]
[385407246,1757842249690,-628.38,0.00022191,3]
[385407247,1757842249702,-480.0,0.00022191,3]
[385407248,1757842249712,-480.0,0.00022191,3]
[385407249,1757842249723,-487.82,0.00022191,3]
[385407250,1757842249734,-151.0,0.00022191,7]
[385407251,1757842249744,-151.0,0.00022191,7]
[385407252,1757842249756,-480.0,0.00022191,3]
[385407253,1757842249767,-480.0,0.00022191,3]
[385407254,1757842249778,-480.0,0.00022191,3]
[385407255,1757842249788,-480.0,0.00022191,3]
[385407256,1757842249799,-480.0,0.00022191,3]
[385407257,1757842249809,-715.55,0.00022191,3]
[385407258,1757842249820,-480.0,0.00022191,3]
[385407259,1757842249832,-857.15,0.00022191,3]
[385407260,1757842249843,-241.367524,0.00022191,7]
[385407261,1757842249855,-480.0,0.00022191,3]
[385407262,1757842249866,-492.45475913,0.00022191,3]
[385407263,1757842249877,-1039.56,0.00022191,3]
[385407264,1757842249889,-480.0,0.00022191,3]
[385407265,1757842249901,-480.0,0.00022191,3]
[385407266,1757842249912,-1229.55,0.00022191,3]
[385407267,1757842249923,-1078.36,0.00022191,3]
[385407268,1757842249937,-213.82,0.00022191,7]
[385407269,1757842249950,-814.79,0.00022191,3]
[385407270,1757842249960,-606.16213892,0.00022191,3]
[385407271,1757842249972,-878.99,0.00022191,3]
[385407272,1757842249984,-488.81539216,0.00022191,3]
[385407273,1757842249996,-482.38488293,0.00022191,3]
[385407274,1757842250008,-480.0,0.00022191,3]
[385407275,1757842250019,-480.0,0.00022191,3]
[385407276,1757842250030,-151.0,0.00022191,7]
[385407277,1757842250041,-151.0,0.00022191,7]
[385407278,1757842250052,-151.0,0.00022191,7]
[385407279,1757842250063,-151.0,0.00022191,7]
[385407280,1757842250074,-151.0,0.00022191,7]
[385407281,1757842250085,-151.0,0.00022191,7]
[385407282,1757842250096,-151.0,0.00022191,7]
[385407283,1757842250106,-151.0,0.00022191,7]
[385407284,1757842250117,-1413.74,0.00022191,3]
[385407285,1757842250128,-153.683209,0.00022191,7]
[385407286,1757842250139,-480.0,0.00022191,3]
[385407287,1757842250150,-1065.31,0.00022191,3]
[385407288,1757842250162,-480.0,0.00022191,3]
[385407289,1757842250173,-480.0,0.00022191,3]
[385407290,1757842250184,-489.74,0.00022191,3]
[385407291,1757842250195,-480.0,0.00022191,3]
[385407292,1757842250206,-480.0,0.00022191,3]
[385407293,1757842250217,-783.43,0.00022191,3]
[385407294,1757842250229,-480.0,0.00022191,3]
[385407295,1757842250240,-1058.04,0.00022191,3]
[385407296,1757842250251,-480.0,0.00022191,3]
[385407297,1757842250262,-480.0,0.00022191,3]
[385407298,1757842250273,-728.82,0.00022191,3]
[385407299,1757842250284,-151.0,0.00022191,7]
[385407300,1757842250295,-151.0,0.00022191,7]
[385407301,1757842250306,-151.0,0.00022191,7]
[385407302,1757842250318,-151.0,0.00022191,7]
[385407303,1757842250329,-480.0,0.00022191,3]
[385407304,1757842250340,-480.0,0.00022191,3]
[385407305,1757842250351,-724.7,0.00022191,3]
[385407306,1757842250362,-480.0,0.00022191,3]
[385407307,1757842250372,-500.0,0.00022191,3]
[385407308,1757842250383,-480.0,0.00022191,3]
[385407309,1757842250394,-485.59995779,0.00022191,3]
[385407310,1757842250405,-480.0,0.00022191,3]
[385407311,1757842250416,-487.62795266,0.00022191,3]
[385407312,1757842250427,-480.0,0.00022191,3]
[385407313,1757842250438,-480.0,0.00022191,3]
[385407314,1757842250448,-165.279308,0.00022191,7]
[385407315,1757842250460,-480.0,0.00022191,3]
[385407316,1757842250471,-480.0,0.00022191,3]
[385407317,1757842250482,-736.46,0.00022191,3]
[385407318,1757842250493,-480.0,0.00022191,3]
[385407319,1757842250504,-953.32,0.00022191,3]
[385407320,1757842250515,-492.66034118,0.00022191,3]
[385407321,1757842250525,-1851.05,0.00022191,3]
[385407322,1757842250537,-480.0,0.00022191,3]
[385407323,1757842250547,-816.13,0.00022191,3]
[385407324,1757842250558,-151.0,0.00022191,7]
[385407325,1757842250569,-151.0,0.00022191,7]
[385407326,1757842250580,-916.64,0.00022191,3]
[385407327,1757842250590,-859.31,0.00022191,3]
[385407328,1757842250599,-151.0,0.00022191,7]
[385407329,1757842250608,-175.952151,0.00022191,7]
[385407330,1757842250617,-151.0,0.00022191,7]
[385407331,1757842250626,-480.0,0.00022191,3]
[385407332,1757842250636,-857.5,0.00022191,3]
[385407333,1757842250848,-480.0,0.00022191,3]
[385407334,1757842250866,-151.0,0.00022191,7]
[385407335,1757842250876,-151.0,0.00022191,7]
[385407336,1757842250886,-226.464148,0.00022191,7]
[385407337,1757842250896,-558.54,0.00022191,3]
[385407338,1757842250907,-480.0,0.00022191,3]
[385407339,1757842250917,-480.0,0.00022191,3]
[385407340,1757842250927,-1052.55,0.00022191,3]
[385407341,1757842250940,-480.0,0.00022191,3]
[385407342,1757842250949,-4286.53,0.00022191,3]
[385407343,1757842250958,-480.0,0.00022191,3]
[385407344,1757842250967,-3346.74,0.00022191,3]
[385407345,1757842250976,-1303.6,0.00022191,3]
[385407346,1757842250986,-480.0,0.00022191,3]
[385407347,1757842250995,-480.0,0.00022191,3]
[385407348,1757842251005,-480.0,0.00022191,3]
[385407349,1757842251015,-1497.82,0.00022191,3]
[385407350,1757842251024,-559.59756732,0.00022191,3]
[385407351,1757842251034,-505.34250469,0.00022191,3]
[385407352,1757842251043,-480.0,0.00022191,3]
[385407353,1757842251052,-151.0,0.00022191,7]
[385407354,1757842251062,-240.457075,0.00022191,7]
[385407355,1757842251072,-578.87,0.00022191,3]
[385407356,1757842251081,-480.0,0.00022191,3]
[385407357,1757842251090,-480.0,0.00022191,3]
[385407358,1757842251099,-1428.71,0.00022191,3]